Cogmind - Beta 12 @@@ ROGUE MODE // 2023.04.17 @ 13:49:10 Player: Mr Goldstein Result: Self-destructed Performance ------------- Evolutions (3) 1500 Regions Visited (6) 1200 Robots Destroyed (0) 0 Value Destroyed (0) 0 Prototype IDs (0) 0 Alien Tech Used (0) 0 Bonus (634) 634 TOTAL SCORE: 3334 Bonus ------- Pacifist 634 Cogmind --------- Core Integrity 222/700 Matter 108/300 Energy 100/100 System Corruption 0% Temperature Cool (0) Movement Core (50) Location -7/Factory Parts ------- > --- POWER (1) -------- (None) > --- PROPULSION (6) --- (None) > --- UTILITY (4) ------ (None) > --- WEAPON (2) ------- (None) > --- INVENTORY (5) ---- Small Storage Unit Peak State ------------ > --- POWER ------------ (None) > --- PROPULSION ------- (None) > --- UTILITY ---------- Small Storage Unit > --- WEAPON ----------- (None) > --- INVENTORY -------- (None) [Rating: 1] Favorites ----------- Power None Propulsion None Utility Small Storage Unit Storage Small Storage Unit Weapon Datajack Special Melee Weapon Datajack Build | -11 -10 -10 -10 -9 -8 -7 ------- Run | Jun Mat Min Exi Min Mat Fac Slots Evolved 6 | . . . . . 4 2 Power . | . . . . . . . Propulsion 4 | . . . . . 2 2 Utility 2 | . . . . . 2 . Weapon . | . . . . . . . Parts Attached 2 | 1 . . . . . 1 Power . | . . . . . . . Engine . | . . . . . . . Core . | . . . . . . . Reactor . | . . . . . . . Propulsion . | . . . . . . . Treads . | . . . . . . . Leg . | . . . . . . . Wheel . | . . . . . . . Hover . | . . . . . . . Flight . | . . . . . . . Utility 1 | 1 . . . . . . Device . | . . . . . . . Storage 1 | 1 . . . . . . Processor . | . . . . . . . Hackware . | . . . . . . . Protection . | . . . . . . . Artifact . | . . . . . . . Weapon 1 | . . . . . . 1 Energy Gun . | . . . . . . . Energy Cannon . | . . . . . . . Ballistic Gun . | . . . . . . . Ballistic Cannon . | . . . . . . . Launcher . | . . . . . . . Special Weapon . | . . . . . . . Impact Weapon . | . . . . . . . Slashing Weapon . | . . . . . . . Piercing Weapon . | . . . . . . . Special Melee Weapon 1 | . . . . . . 1 Unidentified Prototypes . | . . . . . . . Parts Lost 1 | . . . . . . 1 Power . | . . . . . . . Propulsion . | . . . . . . . Utility . | . . . . . . . Weapon 1 | . . . . . . 1 Highest Loss Streak 1 | . . . . . . 1 To Critical Strikes . | . . . . . . . Average Slot Usage (%) . | . . . . . . 1 Naked Turns 265 | . 19 59 14 28 62 83 Heaviest Build 1 | . . . . . . 1 Greatest Support 3 | 3 3 3 3 3 3 3 Greatest Overweight (x) . | . . . . . . . Average Overweight (x) . | . . . . . . . Largest Inventory Capacity 8 | 8 5 5 5 5 5 5 Average Capacity 5 | 5 5 5 5 5 5 5 Most Carried 1 | 1 1 1 1 1 1 1 Average Carried . | . 1 1 1 1 1 1 Final Capacity 5 | 5 5 5 5 5 5 5 Final Carried 1 | 1 1 1 1 1 1 1 Class Distribution -------------------- 100% | Mutant Dominant Class ---------------- Mutant | -10/Materials Mutant | -10/Mines Mutant | -10/Exiles Mutant | -9/Mines Mutant | -8/Materials Mutant | -7/Factory Resources | -11 -10 -10 -10 -9 -8 -7 ----------- Run | Jun Mat Min Exi Min Mat Fac Matter Collected . | . . . . . . . Remotely . | . . . . . . . Salvage Created . | . . . . . . . Parts . | . . . . . . . Haulers Intercepted . | . . . . . . . Recyclers Shooed . | . . . . . . . Parts Field Recycled . | . . . . . . . Retrieved Matter . | . . . . . . . Parts Self-Destructed . | . . . . . . . Prevented . | . . . . . . . Kills | -11 -10 -10 -10 -9 -8 -7 ------- Run | Jun Mat Min Exi Min Mat Fac Combat Hostiles Destroyed . | . . . . . . . Classes Destroyed . | . . . . . . . Best Kill Streak . | . . . . . . . Combat Bots Only . | . . . . . . . Max Kills in Single Turn . | . . . . . . . Gunslinging . | . . . . . . . Exploded . | . . . . . . . Melee . | . . . . . . . Uniques/NPCs Destroyed . | . . . . . . . Combat | -11 -10 -10 -10 -9 -8 -7 -------- Run | Jun Mat Min Exi Min Mat Fac Damage Taken 980 | . . 12 . 226 250 492 Core 966 | . . 12 . 226 250 478 Absorbed by Shields . | . . . . . . . Core Remaining (%) 52 | 100 . . . 4 54 . Volleys Fired . | . . . . . . . Largest . | . . . . . . . Hottest . | . . . . . . . Shots Fired . | . . . . . . . Gun . | . . . . . . . Cannon . | . . . . . . . Launcher . | . . . . . . . Special . | . . . . . . . Kinetic . | . . . . . . . Thermal . | . . . . . . . Explosive . | . . . . . . . Electromagnetic . | . . . . . . . Robot Hit Streak . | . . . . . . . Robot Miss Streak . | . . . . . . . Penetration Max . | . . . . . . . Secondary Targets . | . . . . . . . Shots Hit Robots 2 | . . . . . . 2 Core Hits 1 | . . 1 . . . . Critical Kills . | . . . . . . . Critical Parts Destroyed . | . . . . . . . Critical Strikes . | . . . . . . . Melee Attacks 2 | . . . . . . 2 Impact . | . . . . . . . Slashing . | . . . . . . . Piercing . | . . . . . . . Sneak Attacks 2 | . . . . . . 2 Combat Hostiles . | . . . . . . . Follow-up Attacks . | . . . . . . . Damage Inflicted 22 | . . 22 . . . . Guns . | . . . . . . . Cannons . | . . . . . . . Explosions . | . . . . . . . Melee . | . . . . . . . Ramming 22 | . . 22 . . . . Kinetic . | . . . . . . . Thermal . | . . . . . . . Explosive . | . . . . . . . Electromagnetic . | . . . . . . . Impact . | . . . . . . . Slashing . | . . . . . . . Piercing . | . . . . . . . Highest Corruption . | . . . . . . . Average Corruption . | . . . . . . . Corruption Purged . | . . . . . . . Corruption Blocked . | . . . . . . . Overload Shots . | . . . . . . . Overflow Damage . | . . . . . . . Projectiles . | . . . . . . . Explosions . | . . . . . . . Melee . | . . . . . . . Knockbacks 1 | . . 1 . . . . Impact 1 | . . 1 . . . . Kinetic . | . . . . . . . Secondary . | . . . . . . . Self-Inflicted Damage 10 | . . 10 . . . . Shots . | . . . . . . . Rammed 5 | . . 5 . . . . Targets Rammed 5 | . . 5 . . . . Kicked . | . . . . . . . Crushed . | . . . . . . . Highest Temperature . | . . . . . . . Average Temperature . | . . . . . . . Received Heat Transfer 45 | . . . . . 45 . Siege Activations . | . . . . . . . Robots Corrupted . | . . . . . . . Combat Hostiles . | . . . . . . . Parts Fried . | . . . . . . . Impact Corruptions . | . . . . . . . Robots Melted . | . . . . . . . Combat Hostiles . | . . . . . . . Parts Melted . | . . . . . . . Heat Transferred . | . . . . . . . Parts Sabotaged . | . . . . . . . Parts Stolen . | . . . . . . . Parts Stripped . | . . . . . . . Power Chain Reactions . | . . . . . . . Missiles Intercepted . | . . . . . . . Alert | -11 -10 -10 -10 -9 -8 -7 ------- Run | Jun Mat Min Exi Min Mat Fac Peak Influence 110 | . . . . 15 110 100 Initial 49 | . . . . . 5 49 Average 29 | . . . . 4 32 61 Maximum Alert Level . | . . . . . . . Low Security (%) 100 | 100 100 100 . 100 100 100 Level 1 . | . . . . . . . Level 2 . | . . . . . . . Level 3 . | . . . . . . . Level 4 . | . . . . . . . Level 5 . | . . . . . . . High Security . | . . . . . . . Max Security . | . . . . . . . Squads Dispatched 4 | . . . . . . 4 Investigation 2 | . . . . . . 2 Extermination . | . . . . . . . Reinforcement 2 | . . . . . . 2 Assault . | . . . . . . . Garrison . | . . . . . . . Intercept . | . . . . . . . Searches Triggered . | . . . . . . . Construction Impeded . | . . . . . . . Haulers Reinforced . | . . . . . . . Active Scanning Responses . | . . . . . . . Cargo Convoy Interrupts . | . . . . . . . Stealth | -11 -10 -10 -10 -9 -8 -7 --------- Run | Jun Mat Min Exi Min Mat Fac Distress Signals . | . . . . . . . Communications Jammed . | . . . . . . . Distress Signals . | . . . . . . . Times Spotted 27 | . . . . 6 14 7 Peak Tracking Total 10 | . . . . 5 10 3 Tactical Retreats 4 | . . . . 1 2 1 Traps | -11 -10 -10 -10 -9 -8 -7 ------- Run | Jun Mat Min Exi Min Mat Fac Traps Triggered . | . . . . . . . Indirectly . | . . . . . . . Trap Hack Attempts . | . . . . . . . Triggered . | . . . . . . . Disarmed . | . . . . . . . Reprogrammed . | . . . . . . . Reused . | . . . . . . . Traps Extracted . | . . . . . . . Installed . | . . . . . . . Triggered . | . . . . . . . Machines | -11 -10 -10 -10 -9 -8 -7 ---------- Run | Jun Mat Min Exi Min Mat Fac Machines Disabled . | . . . . . . . Max in Single Turn . | . . . . . . . Machines Repaired . | . . . . . . . Machines Sabotaged . | . . . . . . . Overloaded Fab Kills . | . . . . . . . Hacking | -11 -10 -10 -10 -9 -8 -7 --------- Run | Jun Mat Min Exi Min Mat Fac Machines Accessed 3 | . 1 . . . . 2 Terminals 3 | . 1 . . . . 2 Fabricators . | . . . . . . . Repair Stations . | . . . . . . . Recycling Units . | . . . . . . . Scanalyzers . | . . . . . . . Garrison Access . | . . . . . . . Total Hacks 6 | . 2 . . . . 4 Successful 2 | . 1 . . . . 1 Failed 4 | . 1 . . . . 3 Catastrophic 3 | . . . . . . 3 Database Lockouts . | . . . . . . . Manual . | . . . . . . . Terminals 6 | . 2 . . . . 4 Fabricators . | . . . . . . . Repair Stations . | . . . . . . . Recycling Units . | . . . . . . . Scanalyzers . | . . . . . . . Garrison Access . | . . . . . . . Terminal Hacks 2 | . 1 . . . . 1 Branch Access Points 1 | . . . . . . 1 Zone Layout 1 | . 1 . . . . . Fabricator Hacks . | . . . . . . . Repair Station Hacks . | . . . . . . . Recycling Unit Hacks . | . . . . . . . Scanalyzer . | . . . . . . . Garrison Access Hacks . | . . . . . . . Unauthorized Hacks . | . . . . . . . Terminals . | . . . . . . . Fabricators . | . . . . . . . Repair Stations . | . . . . . . . Recycling Units . | . . . . . . . Scanalyzers . | . . . . . . . Garrison Access . | . . . . . . . Data Cores Recovered . | . . . . . . . Used . | . . . . . . . Hacking Detections 2 | . . . . . . 2 Full Trace Events 2 | . . . . . . 2 Feedback Events . | . . . . . . . Feedback Blocked . | . . . . . . . Robot Schematics Acquired . | . . . . . . . Robots Built . | . . . . . . . Authchips . | . . . . . . . Time . | . . . . . . . Total Robot Build Rating . | . . . . . . . Part Schematics Acquired . | . . . . . . . Parts Built . | . . . . . . . Authchips . | . . . . . . . Time . | . . . . . . . Total Part Build Rating . | . . . . . . . Parts Repaired . | . . . . . . . Time . | . . . . . . . Parts Recycled . | . . . . . . . Recycled Matter . | . . . . . . . Retrieved Matter . | . . . . . . . Retrieved Components . | . . . . . . . Parts Scanalyzed . | . . . . . . . Part Schematics Acquired . | . . . . . . . Parts Damaged . | . . . . . . . Bothacking | -11 -10 -10 -10 -9 -8 -7 ------------ Run | Jun Mat Min Exi Min Mat Fac Used RIF Installer . | . . . . . . . Robots Hacked 1 | . . . . . . 1 Non-combat 1 | . . . . . . 1 Combat . | . . . . . . . Robot Hacks Applied 2 | . . . . . . 2 find_chute 2 | . . . . . . 2 Relay Couplers Released . | . . . . . . . Fabnet Peak Effective % . | . . . . . . . Robots Rewired . | . . . . . . . Allies Hacked . | . . . . . . . Hacks Repelled . | . . . . . . . Allies | -11 -10 -10 -10 -9 -8 -7 -------- Run | Jun Mat Min Exi Min Mat Fac Total Allies . | . . . . . . . Largest Group . | . . . . . . . Highest-Rated Group . | . . . . . . . Highest-Rated Ally . | . . . . . . . Total Orders . | . . . . . . . Ally Attacks . | . . . . . . . Total Damage . | . . . . . . . Kills . | . . . . . . . Allies Corrupted . | . . . . . . . Allies Melted . | . . . . . . . Intel | -11 -10 -10 -10 -9 -8 -7 ------- Run | Jun Mat Min Exi Min Mat Fac Robot Analysis Total . | . . . . . . . Derelict Logs Recovered 3 | . . 2 . 1 . . Drone Launches . | . . . . . . . Drone Recoveries . | . . . . . . . Exploration | -11 -10 -10 -10 -9 -8 -7 ------------- Run | Jun Mat Min Exi Min Mat Fac Turns Passed 296 | 11 19 59 14 28 62 103 Spaces Moved 565 | 18 38 107 28 55 124 195 Core 565 | 18 38 107 28 55 124 195 Treads . | . . . . . . . Legs . | . . . . . . . Wheels . | . . . . . . . Hover . | . . . . . . . Flight . | . . . . . . . Fastest Speed 50 | 50 50 50 50 50 50 50 Average Speed 50 | 50 50 50 50 50 50 50 Slowest Speed 50 | 50 50 50 50 50 50 50 Overloaded Moves . | . . . . . . . Propulsion Burnouts . | . . . . . . . Robots Hopped . | . . . . . . . Cave-ins Triggered . | . . . . . . . Exploration Rate (%) 15 | 3 15 35 8 24 20 6 Regions Visited 6 Branch Regions 3 Pre-discovered Areas . | . . . . . . . Known Exits Taken . | . . . . . . . Unknown Exits Taken 6 | 1 1 1 1 1 1 . Scrap Searched 1 | . . 1 . . . . Spaces Dug . | . . . . . . . Terrain Destroyed . | . . . . . . . Melee . | . . . . . . . Projectile . | . . . . . . . AOE . | . . . . . . . Terrain Rammed . | . . . . . . . Walls Destroyed . | . . . . . . . Machines Disabled . | . . . . . . . Actions | -11 -10 -10 -10 -9 -8 -7 --------- Run | Jun Mat Min Exi Min Mat Fac Total 569 | 19 37 111 27 54 123 198 Wait . | . . . . . . . Move 559 | 17 37 106 27 54 123 195 Hop . | . . . . . . . Pick Up . | . . . . . . . Fast Attach 2 | 1 . . . . . 1 Attach . | . . . . . . . Detach 1 | 1 . . . . . . Swap . | . . . . . . . Drop . | . . . . . . . Fire . | . . . . . . . Melee 2 | . . . . . . 2 Ram 5 | . . 5 . . . . Kick . | . . . . . . . Crush . | . . . . . . . Escape Stasis . | . . . . . . . Rewire . | . . . . . . . Trap . | . . . . . . . Miscellaneous . | . . . . . . . Route ------- -11/Junkyard -10/Materials -10/Mines -10/Exiles -9/Mines -8/Materials -7/Factory (discovered 2 exits: Low x2) History --------- Turn | Location | Event 5 | -11/Junkyard | Discovered new exit (range 15) 12 | -11/Junkyard | Entered Materials 24 | -10/Materials | Discovered new exit (range 15) 31 | -10/Materials | Entered Mines 45 | -10/Mines | Learned Materials trap positions 52 | -10/Mines | Learned Materials emergency access door positions 88 | -10/Mines | Deemed a non-threat by the Exiles lab entrance 88 | -10/Mines | Discovered new exit (range 5) 90 | -10/Mines | Entered Exiles 90 | -10/Exiles | Found Exiles lab abandoned 97 | -10/Exiles | Discovered new exit (range 15) 104 | -10/Exiles | Entered Mines 109 | -9/Mines | Learned Materials emergency access door positions 119 | -9/Mines | Assembled infested the area 127 | -9/Mines | Core integrity fell below 50% 128 | -9/Mines | Discovered new exit (range 10) 129 | -9/Mines | Core integrity fell below 20% 132 | -9/Mines | Entered Materials 132 | -8/Materials | Evolved 4 slots: Propulsion x2, Utility x2 133 | -8/Materials | Loaded intel: 15 trap records 187 | -8/Materials | Discovered new exit (range 15) 194 | -8/Materials | Entered Factory 194 | -7/Factory | Evolved 2 slots: Propulsion x2 258 | -7/Factory | Identified exit to Lower Caves 276 | -7/Factory | Core integrity fell below 50% 297 | -7/Factory | Self-destructed Last Messages --------------- Pinpointed chute assignment: (137,110). 00240_ ALERT: Hostiles spotted, dispatching reinforcements to Terminal F005. 00240_ Datajack destroyed. 00241_ O-16 Technician: "IFF HANDSHAKE FAILED. SECURING TERMINAL." 00241_ O-16 Technician uses terminal to summon reinforcements. 00241_ ALERT: Hostiles spotted, dispatching reinforcements to Terminal F001. 00241_ O-16 Technician locks terminal. 00252_ Connecting with Terminal... 00252_ ALERT: Suspicious activity at Terminal F002. Dispatching Investigation squad. 00258_ Connecting with Terminal... >>Access(Branch) Found 2 branch access points: (156,107) Lower Caves (135,49) Lower Caves Map updated. 00258_ ALERT: Suspicious activity at Terminal F007. Dispatching Investigation squad. 00268_ K-01 Serf collects debris. 00277_ K-01 Serf destroyed. Map ----- +----------------------------------------------------+ | ?????????????????????????????????????????????????? | | ?????????????????????????????????????????????????? | | ?????????????????????????????????????????????????? | | ?????????????????????????????????????????????????? | | ?????????????????????????????????????????????????? | | ?????????????????????????????????????????????????? | | ?????????????????????????????????????????????????? | | ?????????????????????????????????????????????????? | | ?????????????????????????????????????????????????? | | ?????????????????????????????????????????????????? | | ?????????????????????????????????????????????????? | | ????????????????????????###########??????????????? | | ????????????????????????# #??????????????? | | ????????????????????????# #??????????????? | | ?????????????????######?# #??????????????? | | ?????????????????# # #??????????????? | | ?????????????????# """" ####+######??????????????? | | ?????????????????# """" + #???????????????????? | | ?????????????????# """" # #???????????????????? | | ?????????????????? """" # #???????????????????? | | ?????????????????? ?# #??????? ???????????? | | ????????????????######### #?# ?? ???????????? | | ????????????????# # #?# ! ?????????? | | ????????????????# ]! # #?# """#????? | | ????????????????# ]! # #?# """#????? | | ????????????????# ]! #@ #?# #????? | | ????????????????# + ss#?# """ #????? | | ????????????????# "" #### #?# """"" #????? | | ????????????????# """ #??# #?? """"" #????? | | ????????" ??????# "T #??# #???? ??????? | | ???????"" ??????# """ #??# #?????? ????????? | | ???????"" ??????# "" #??# #########+########### | | ??????? ??????# #??# # | | ???? """ ""????######+##### # | | ???# """ ""?????????# # | | ???? """ ""?????????####### # | | ?????? ???????????????# # | | ???????? ???????????????# #####+######+#### | | ##########+################# #?? ?? ?? | | T =% ## # | | ! ## # | | + # | | ## # ! | | """" ^ ## # ] | | """" #####+######+########## # | | """" #?? ???[ ???????# # | | ## """ # ?????#!!= # [ | | ! = ## """ # """ """ #????#!!= ######### | | ## """ # """ """ #????#!!= #???????? | | ## # """ """ #????# #???????? | +----------------------------------------------------+ Best States ------------- Heat Dissipation 34 Energy Generation 5 Energy Capacity 100 Matter Stores 113 Matter Capacity 300 Sight Range 16 Terrain Scan Density 10 Evasion (%) 50 Item Schematics ----------------- None Robot Schematics ------------------ None Fabricated ------------ Nothing Alien Tech Used ----------------- None Achievements -------------- None Challenges ------------ None Game ------ Seed MetafieldMakeshiftGun Manual? 0 Play Time 00:05:17 Cumulative 118.1 hours Start 2023.04.17 @ 13:45:22 End 2023.04.17 @ 13:49:10 Sessions 1 Manual Loads 0 Difficulty Rogue Special Mode None Game No. 337 Rogue 337 Adventurer 0 Explorer 0 Win Type - Total 4 Types 4/0/0/0/0/0/0/0/0 Lore% 59 Gallery% 60 Achievement% 53 Wizard Run 0 Options --------- ASCII 0 Keyboard 0 Movement Numpad Keybinds 0 Fullscreen 1 Font 12/Smallcaps Map View 83x54 Tactical HUD 1 Map Filters NONE Filters NONE Steam 1 RUN: f4a74fa3-7c35-4062-8be8-e59ed1b594fd